Cogmind - Beta 11 X7 @@@ ROGUE MODE // 2021.09.02 @ 01:53:45 Player: cptwinky Result: Destroyed by H-77 Assassin with Coil Gun Performance ------------- Evolutions (6) 3000 Regions Visited (24) 4800 Robots Destroyed (316) 1580 Value Destroyed (12288) 12288 Prototype IDs (55) 1100 Alien Tech Used (0) 0 Bonus (8671) 8671 TOTAL SCORE: 31439 Bonus ------- Triggered High Security 500 High Alert Combat Kills 2736 Follower Combat Kills 4642 Network Hubs Disabled 200 Met Data Miner 300 Met Imprinter 300 Was Imprinted 300 A7 Reached Mainframe 300 Met R17 at Cetus 500 Friendly Fire -1107 Cogmind --------- Core Integrity 0/1150 Matter 228/300 Energy 92/100 System Corruption 21% Temperature Cool (0) Movement Core (50) Location -4/Factory Parts ------- > --- POWER (2) -------- (None) > --- PROPULSION (6) --- (None) > --- UTILITY (8) ------ 0b10 Decoder Chip [Generic] > --- WEAPON (3) ------- (None) > --- INVENTORY (5) ---- Experimental Energy Well (3) Improved Sensor Array 7V-RTL's Ultimate Field CR-A16's Pointy Stick GAL Module Peak State ------------ > --- POWER ------------ F-cell Engine Quantum Reactor > --- PROPULSION ------- Centrium Heavy Treads Centrium Heavy Treads Centrium Heavy Treads > --- UTILITY ---------- Improved Cooling System High-capacity Storage Unit Advanced Visual Processing Unit Improved Signal Interpreter Improved Transmission Jammer Centrium Medium Armor Plating Centrium Medium Armor Plating Advanced Powered Armor > --- WEAPON ----------- Advanced Variable Charge Gun Improved KE Penetrator > --- INVENTORY -------- Experimental Energy Well Zionite Biocell Matter Compressor Improved Sensor Array 0b10 Decoder Chip [Generic] Centrium Medium Armor Plating Centrium Medium Armor Plating Medium Insulated Plating 7V-RTL's Ultimate Field Enhanced Nova Cannon Tiamat Missile Launcher Tiamat Missile Launcher Advanced Datajack Enhanced Flamer CR-A16's Pointy Stick GAL Module [Rating: 137] Favorites ----------- Power Cooled Ion Engine Engine Cooled Ion Engine Power Core Micro Fission Core Reactor Quantum Reactor Propulsion Advanced Treads Treads Advanced Treads Leg Carbon-fiber Leg Wheel Armored Huge Wheel Utility High-capacity Storage Unit Device Improved Sensor Array Storage High-capacity Storage Unit Processor Advanced Visual Processing Unit Hackware System Shield Protection Improved Medium Armor Plating Weapon Improved Assault Rifle Energy Gun Arc Projector Energy Cannon Enhanced Nova Cannon Ballistic Gun Improved Assault Rifle Ballistic Cannon Heavy Assault Cannon Launcher Rocket Launcher Special Weapon Enhanced Flamer Impact Weapon Powered Hammer Slashing Weapon Axe Piercing Weapon CR-A16's Pointy Stick Special Melee Weapon Improved Datajack Build | -11 -10 -10 -9 -9 -9 -8 -8 -8 -7 -7 -7 -7 -6 -6 -6 -6 -6 -5 -5 -5 -5 -5 -5 -4 ------- Run | Scr Mat Min Mat Min Exi Min Mat Sto Fac Low Low Zio Pro Fac Low Low Dat Pro Fac Ext Cet Arc Hub Fac Slots Evolved 12 | . . . 2 . . . 2 . 2 . . . . 2 . . . . 2 . . . . 2 Power 1 | . . . . . . . . . . . . . . . . . . . . . . . . 1 Propulsion 4 | . . . 1 . . . . . 1 . . . . 1 . . . . 1 . . . . . Utility 6 | . . . 1 . . . 1 . 1 . . . . 1 . . . . 1 . . . . 1 Weapon 1 | . . . . . . . 1 . . . . . . . . . . . . . . . . . Parts Attached 430 | 2 13 4 26 1 . 6 18 36 29 19 19 4 23 31 14 20 1 26 22 44 13 8 10 41 Power 19 | . 1 1 2 . . . 3 3 . . . . . 3 . . . . 1 1 1 2 . 1 Engine 14 | . 1 . 2 . . . 3 2 . . . . . 3 . . . . 1 . 1 1 . . Core 3 | . . 1 . . . . . 1 . . . . . . . . . . . 1 . . . . Reactor 2 | . . . . . . . . . . . . . . . . . . . . . . 1 . 1 Propulsion 64 | 2 2 2 6 . . 1 6 11 4 1 1 2 2 5 . 1 . 5 2 4 3 . 1 3 Treads 55 | 2 2 1 5 . . 1 4 11 4 1 1 1 2 4 . 1 . 3 2 4 3 . 1 2 Leg 3 | . . 1 . . . . . . . . . 1 . . . . . 1 . . . . . . Wheel 6 | . . . 1 . . . 2 . . . . . . 1 . . . 1 . . . . . 1 Hover . | . . . . . . . . . . . . . . . . . . . . . . . . . Flight . | . . . . . . . . . . . . . . . . . . . . . . . . . Utility 173 | . 2 1 7 1 . 3 3 3 19 10 10 1 4 16 10 9 1 15 6 21 3 4 5 19 Device 80 | . . . 4 . . . . . 7 6 5 1 2 8 7 5 . 6 3 16 . 3 3 4 Storage 7 | . 1 . 1 . . . . . 1 . . . . . . . . 1 . . . . . 3 Processor 9 | . 1 1 . . . 2 . 1 2 . . . . . . . . 1 . . . . . 1 Hackware 2 | . . . . . . . 1 . . . . . . 1 . . . . . . . . . . Protection 75 | . . . 2 1 . 1 2 2 9 4 5 . 2 7 3 4 1 7 3 5 3 1 2 11 Artifact . | . . . . . . . . . . . . . . . . . . . . . . . . . Weapon 174 | . 8 . 11 . . 2 6 19 6 8 8 1 17 7 4 10 . 6 13 18 6 2 4 18 Energy Gun 12 | . . . 3 . . . . 1 1 2 3 . . . . . . . . . 1 . . 1 Energy Cannon 4 | . . . . . . . . . . . . . . . . . . . 1 . . . . 3 Ballistic Gun 92 | . 7 . 7 . . 1 4 12 4 3 2 . 8 5 2 4 . 3 7 9 4 1 3 6 Ballistic Cannon 2 | . . . . . . . . . . . . . . 1 . . . . 1 . . . . . Launcher 29 | . . . . . . 1 1 2 . 2 3 1 3 1 1 2 . 1 1 1 1 . . 8 Special Weapon 7 | . . . . . . . . . . . . . 2 . . 2 . 2 1 . . . . . Impact Weapon 1 | . . . . . . . . . . 1 . . . . . . . . . . . . . . Slashing Weapon 5 | . . . 1 . . . . 3 1 . . . . . . . . . . . . . . . Piercing Weapon 4 | . . . . . . . . . . . . . 1 . 1 1 . . 1 . . . . . Special Melee Weapon 18 | . 1 . . . . . 1 1 . . . . 3 . . 1 . . 1 8 . 1 1 . Unidentified Prototypes 18 | . . . 3 . . . 1 2 1 . . . 2 2 . . . 2 . . 4 1 . . Corrupted Parts 3 | . . . . . . . . . . . . . . . . . . . . . 3 . . . System Corruption 7 | . . . . . . . . . . . . . . . . . . . . . 7 . . . Parts Lost 36 | . 3 2 1 . . . . . . . . . . 1 . . . . 1 2 . . . 26 Power 3 | . 1 . . . . . . . . . . . . . . . . . . . . . . 2 Propulsion 9 | . . 2 . . . . . . . . . . . . . . . . 1 . . . . 6 Utility 13 | . . . . . . . . . . . . . . 1 . . . . . 2 . . . 10 Weapon 11 | . 2 . 1 . . . . . . . . . . . . . . . . . . . . 8 Highest Loss Streak 12 | . 3 2 1 . . . . . . . . . . 1 . . . . 1 1 . . . 12 Average Slot Usage (%) 94 | . 95 96 96 100 100 100 98 99 100 100 100 99 99 92 93 93 93 90 85 87 86 81 82 76 Engine 6 | . 14 1 8 11 11 11 8 7 7 7 7 7 7 6 6 6 6 6 5 . 4 4 5 4 Treads 26 | . 27 27 22 33 33 33 24 27 30 30 30 29 30 24 33 33 33 28 17 22 17 17 17 13 Wheel 1 | . . . 9 . . . 2 . . . . . . 3 . . . 2 5 5 3 . . . Device 5 | . . . 2 . . . . . 4 6 4 7 12 8 5 5 . 5 10 8 11 10 9 12 Storage 7 | . 14 12 11 11 11 11 9 9 7 7 7 7 7 6 6 6 6 6 5 5 5 5 5 5 Processor 13 | . 10 14 11 11 11 11 9 9 16 23 23 22 15 13 13 13 13 17 11 11 11 11 11 9 Hackware 2 | . . . . . . . 2 9 6 . . . . 4 6 6 6 . . . . . . . Protection 6 | . . . 8 11 11 11 14 9 2 . 2 . 2 5 7 6 13 7 11 13 11 11 12 9 Energy Gun 1 | . 4 . 6 . . . . 2 . . 3 . . . . . . . . . 1 . . 1 Ballistic Gun 16 | . 22 26 15 22 22 22 25 23 23 22 19 15 19 14 5 3 6 3 9 4 14 16 17 11 Ballistic Cannon 1 | . . . . . . . . . . . . . . 2 6 6 6 6 3 5 . . . . Naked Turns 1 | . . . . . . . . . . . . . . . . . . . . . . . . 1 Heaviest Build 130 | 12 19 19 59 57 57 57 63 66 77 78 78 67 81 94 102 100 94 102 99 98 85 91 94 130 Greatest Support 240 | 40 40 40 60 60 60 60 60 66 86 86 94 94 94 112 112 115 115 115 28 28 240 240 240 240 Greatest Overweight (x) 28 | . . . 3 . . . 3 1 . . . . . 3 . . . 3 3 3 3 28 . . Average Overweight (x) . | . . . 2 . . . 1 . . . . . . 1 . . . 1 2 2 1 12 . . Largest Inventory Capacity 20 | 8 10 10 20 20 20 20 20 20 20 20 20 20 20 20 20 20 20 20 20 20 20 20 20 20 Average Capacity 19 | 8 9 9 19 20 20 20 20 20 20 20 20 20 20 20 20 20 20 20 20 20 20 20 20 19 Most Carried 20 | 6 10 10 20 20 20 20 20 20 20 20 20 20 20 20 20 20 20 20 20 20 20 20 20 19 Average Carried 18 | 6 8 9 17 20 18 19 19 19 19 20 20 19 19 19 19 20 20 19 19 19 19 19 19 16 Final Capacity 20 | 8 10 5 20 20 20 20 20 20 20 20 20 20 20 20 20 20 20 20 20 20 20 20 20 5 Final Carried 20 | 6 10 5 20 20 19 20 20 20 20 20 20 20 20 20 20 20 20 20 20 20 20 20 20 5 Class Distribution -------------------- 20% | Scavenger-Mutant 13% | Scavenger-Tank 12% | Mutant 12% | Commander-Mutant 10% | Scavenger-Skirmisher 8% | Commander-Skirmisher 7% | Commander-Tank 6% | Tank 6% | Skirmisher Dominant Class ---------------- Mutant | -10/Materials Mutant | -10/Mines Scavenger-Mutant | -9/Materials Scavenger-Mutant | -9/Mines Scavenger-Mutant | -9/Exiles Scavenger-Mutant | -8/Mines Scavenger-Tank | -8/Materials Mutant | -8/Storage Skirmisher | -7/Factory Skirmisher | -7/Lower Caves Commander-Mutant | -7/Lower Caves Commander-Mutant | -7/Zion Commander-Mutant | -6/Proximity Caves Commander-Tank | -6/Factory Scavenger-Skirmisher | -6/Lower Caves Scavenger-Skirmisher | -6/Lower Caves Scavenger-Tank | -6/Data Miner Scavenger-Mutant | -5/Proximity Caves Scavenger-Mutant | -5/Factory Commander-Tank | -5/Extension Commander-Tank | -5/Cetus Scavenger-Mutant | -5/Archives Scavenger-Skirmisher | -5/Hub_04(d) Scavenger-Tank | -4/Factory Resources | -11 -10 -10 -9 -9 -9 -8 -8 -8 -7 -7 -7 -7 -6 -6 -6 -6 -6 -5 -5 -5 -5 -5 -5 -4 ----------- Run | Scr Mat Min Mat Min Exi Min Mat Sto Fac Low Low Zio Pro Fac Low Low Dat Pro Fac Ext Cet Arc Hub Fac Matter Collected 12082 | 213 263 316 655 16 36 123 384 936 570 407 311 40 552 1125 507 865 . 534 620 1213 233 182 218 1763 Remotely 55 | . . . 45 . . . . . . 10 . . . . . . . . . . . . . . Salvage Created 12093 | . 511 255 1200 . . 68 533 1778 604 372 339 . 550 934 261 444 . 404 292 907 289 188 147 2017 Parts 594 | . 21 16 83 . . 8 32 102 34 20 15 . 20 39 5 14 . 21 16 45 8 10 9 76 Haulers Intercepted 15 | . 2 . 4 . . . . 6 1 . . . . 1 . . . . . . . . . 1 Recyclers Shooed 8 | . . . 1 . . . 1 3 . . . . . 1 . 1 . . . . . . . 1 Parts Field Recycled 41 | . . . 15 . . . . . . . . . . 16 10 . . . . . . . . . Retrieved Matter 472 | . . . 102 . . . . . . . . . . 168 202 . . . . . . . . . Parts Self-Destructed 96 | . . . . . . . . . . 13 15 . 35 . 1 12 . 20 . . . . . . Prevented 7 | . . . . . . . . . . 1 3 . 1 . . 2 . . . . . . . . Kills | -11 -10 -10 -9 -9 -9 -8 -8 -8 -7 -7 -7 -7 -6 -6 -6 -6 -6 -5 -5 -5 -5 -5 -5 -4 ------- Run | Scr Mat Min Mat Min Exi Min Mat Sto Fac Low Low Zio Pro Fac Low Low Dat Pro Fac Ext Cet Arc Hub Fac Combat Hostiles Destroyed 238 | . 10 8 20 . . 4 10 23 10 10 7 . 13 23 8 11 . 12 7 15 6 . 2 39 Guns 127 | . 10 8 20 . . 1 8 20 10 6 4 . 7 7 1 4 . . 2 . 1 . 2 16 Cannons 51 | . . . . . . . . . . . . . 2 5 5 5 . 9 2 15 . . . 8 AOE 58 | . . . . . . 3 2 3 . 4 3 . 3 11 2 2 . 3 3 . 5 . . 14 Classes Destroyed 24 | . 5 2 3 . . 1 . 2 1 3 1 . 2 2 . . . . . 1 . . . 1 Worker 16 | . . 1 2 . . . . 4 . . . . . . . . . . 1 1 . . . 7 Builder 8 | . . . 1 . . . . 1 . . . . . 1 . . . . . 1 . . 1 3 Tunneler 1 | . . . 1 . . . . . . . . . . . . . . . . . . . . . Hauler 15 | . 2 . 4 . . . . 6 1 . . . . 1 . . . . . . . . . 1 Recycler 12 | . . 1 2 . . . 2 3 . . . . . 1 . . . . 1 1 . . . 1 Minesweeper 5 | . . . . . . . . . . . 2 . 1 . . 1 . 1 . . . . . . Mechanic 1 | . . . . . . . . 1 . . . . . . . . . . . . . . . . Operator 11 | . 2 . 1 . . . . 3 . . . . . . . . . . . . . 5 . . Drone 1 | . . . . . . . . . . . . . 1 . . . . . . . . . . . Watcher 7 | . 1 . 1 . . . . 2 2 . . . . 1 . . . . . . . . . . Swarmer 56 | . 3 6 7 . . 3 3 4 . 4 3 . 3 5 . 4 . 5 1 . 1 . . 4 Saboteur 3 | . . . . . . . . . . . . . . 1 . . . . . . . . . 2 Grunt 74 | . 7 2 7 . . . 3 12 4 1 2 . 3 6 1 4 . 2 . 5 4 . 1 10 Brawler 14 | . . . . . . . . . . 1 . . 3 2 1 1 . . . . 1 . . 5 Duelist 7 | . . . . . . . . 1 . . . . 1 . . . . . 2 . . . . 3 Protector 2 | . . . . . . . . . . . . . . 1 . . . . . . . . . 1 Sentry 32 | . . . 6 . . . 4 6 2 1 . . 1 3 . . . 1 . 6 . . . 2 Demolisher 2 | . . . . . . . . . . . . . 2 . . . . . . . . . . . Specialist 1 | . . . . . . . . . . . . . . . . . . . . 1 . . . . Hunter 17 | . . . . . . 1 . . 1 1 . . . 4 . . . 4 2 . . . . 4 Programmer 19 | . . . . . . . . . 3 . 1 . . 1 . 2 . . 2 2 . . 1 7 Heavy 1 | . . . . . . . . . . . . . . . . . . . . . . . . 1 Behemoth 3 | . . . . . . . . . . 1 1 . . . . . . . . 1 . . . . Packrat 2 | . . . . . . . . . . . . . . . . 2 . . . . . . . . Thug 3 | . . . . . . . . . . . . . . . 3 . . . . . . . . . Butcher 2 | . . . . . . . . . . . . . . . 2 . . . . . . . . . Mutant 4 | . . . . . . . . . . 1 . . . . 2 1 . . . . . . . . Best Kill Streak 20 | . 5 7 4 . . 3 4 9 3 5 3 . 3 20 4 3 . 5 4 3 5 3 1 9 Combat Bots Only 19 | . 5 3 4 . . 3 3 4 2 5 3 . 3 19 4 3 . 5 3 2 5 . 1 9 Max Kills in Single Turn 5 | . 1 2 2 . . 3 2 3 2 3 2 . 2 4 2 2 . 2 2 2 5 1 1 2 Gunslinging 1 | . . . . . . . . . . . . . . . . . . . . . . . . 1 Exploded 5 | . . . . . . 3 2 3 . 3 2 . 2 3 2 2 . 2 2 . 5 . . 2 Melee . | . . . . . . . . . . . . . . . . . . . . . . . . . Uniques/NPCs Destroyed . | . . . . . . . . . . . . . . . . . . . . . . . . . Combat | -11 -10 -10 -9 -9 -9 -8 -8 -8 -7 -7 -7 -7 -6 -6 -6 -6 -6 -5 -5 -5 -5 -5 -5 -4 -------- Run | Scr Mat Min Mat Min Exi Min Mat Sto Fac Low Low Zio Pro Fac Low Low Dat Pro Fac Ext Cet Arc Hub Fac Damage Taken 18382 | . 626 584 633 . . 314 222 1172 323 223 167 . 434 716 526 325 . 360 562 1171 89 . 105 9830 Core 1906 | . 57 91 84 . . 7 . 96 27 41 6 . 35 40 93 6 . 29 65 66 10 . . 1153 Absorbed by Shields 2333 | . . . . . . . . . 16 145 157 . 11 610 115 225 . 210 98 119 39 . . 588 Reduced by Siege Mode 181 | . . . . . . . . . . . . . . . . . . . . . . . . 181 Core Remaining (%) 78 | 100 . 40 . . . 77 . 82 . . . . 84 . . . . 80 . . . . 85 . Volleys Fired 942 | . 67 17 78 . . 12 32 106 34 24 40 . 70 51 27 76 . 47 35 53 11 16 19 127 Largest 3 | . 2 2 2 . . 2 3 3 3 3 3 . 3 3 2 2 . 2 3 2 3 2 3 3 Hottest 240 | . 70 40 98 . . 46 69 71 101 101 71 . 80 85 85 85 . 85 98 85 240 60 80 200 Shots Fired 1838 | . 129 34 156 . . 23 67 228 102 58 59 . 132 112 50 117 . 66 57 104 22 32 25 265 Gun 1472 | . 129 34 156 . . 22 65 227 102 52 55 . 94 78 23 49 . 19 35 51 21 32 25 203 Cannon 235 | . . . . . . . . . . . . . . 29 24 47 . 28 17 53 . . . 37 Launcher 60 | . . . . . . 1 2 1 . 6 4 . 2 5 3 3 . 4 3 . 1 . . 25 Special 71 | . . . . . . . . . . . . . 36 . . 18 . 15 2 . . . . . Kinetic 1477 | . 88 34 110 . . 22 65 184 100 47 29 . 94 107 47 96 . 47 50 104 17 32 25 179 Thermal 225 | . 41 . 46 . . . . . . . . . 36 . . 18 . 15 4 . 4 . . 61 Explosive 60 | . . . . . . 1 2 1 . 6 4 . 2 5 3 3 . 4 3 . 1 . . 25 Electromagnetic 76 | . . . . . . . . 43 2 5 26 . . . . . . . . . . . . . Robot Hit Streak 26 | . 15 5 10 . . 9 10 22 16 19 13 . 15 7 5 22 . 8 6 13 9 16 5 26 Robot Miss Streak 5 | . 5 3 5 . . 1 3 3 1 1 4 . 3 4 3 4 . 3 5 3 4 3 1 5 Penetration Max 2 | . . . . . . . . . . . . . . . 1 . . . . . . 1 . 2 Secondary Targets 10 | . . 1 2 . . . . . 1 1 . . 1 . . . . . . . 1 . . 3 Max Gunslinging Chain 2 | . . 1 1 . . . . . 1 1 . . 1 . . . . . . . 1 . . 2 Shots Hit Robots 1297 | . 91 18 99 . . 18 38 170 80 48 41 . 107 61 32 78 . 36 32 138 12 18 8 172 Core Hits 635 | . 30 12 46 . . 7 20 67 28 28 21 . 43 53 18 35 . 23 17 37 10 12 4 124 Critical Kills 12 | . . . . . . . . 1 . . . . . 1 . . . . . . . 1 . 9 Critical Parts Destroyed 19 | . . . . . . . . 1 . . . . 1 . . . . . . . . 2 . 15 Critical Strikes 60 | . 1 . 5 . . . . 2 . . . . 1 6 . 3 . 6 . 8 . 3 . 25 Burn 8 | . 1 . 5 . . . . . . . . . . . . 1 . 1 . . . . . . Meltdown 1 | . . . . . . . . . . . . . . . . . . . . . . . . 1 Destroy 31 | . . . . . . . . 2 . . . . 1 1 . . . . . . . 3 . 24 Blast 20 | . . . . . . . . . . . . . . 5 . 2 . 5 . 8 . . . . Melee Attacks 96 | . 1 . 6 . . . . 5 1 1 . . 12 . 2 4 . . 3 59 . 1 1 . Impact 1 | . . . . . . . . . . 1 . . . . . . . . . . . . . . Slashing 12 | . . . 6 . . . . 5 1 . . . . . . . . . . . . . . . Piercing 7 | . . . . . . . . . . . . . 2 . 2 1 . . 2 . . . . . Sneak Attacks 76 | . 1 . . . . . . . . . . . 7 . 2 4 . . 1 59 . 1 1 . Combat Hostiles . | . . . . . . . . . . . . . . . . . . . . . . . . . Follow-up Attacks . | . . . . . . . . . . . . . . . . . . . . . . . . . Damage Inflicted 39541 | . 1014 267 1681 . . 352 829 3226 1386 1195 941 . 1811 3621 2242 3126 . 1312 1637 3261 632 527 214 10267 Guns 16795 | . 1002 255 1681 . . 181 604 2821 1347 723 558 . 1224 693 197 473 . 147 376 738 251 527 189 2808 Cannons 8781 | . . . . . . . . . . . . . . 900 1007 1748 . 769 398 2523 . . . 1436 Explosions 12902 | . . . . . . 161 225 362 . 472 383 . 362 2028 849 608 . 297 841 . 381 . . 5933 Melee 281 | . . . . . . . . . . . . . . . 189 92 . . . . . . . . Ramming 238 | . 12 12 . . . 10 . 43 39 . . . . . . 7 . . . . . . 25 90 Kinetic 21992 | . 641 255 1042 . . 181 604 2454 1347 675 375 . 1224 1593 1204 2221 . 916 774 3261 251 527 189 2258 Thermal 6113 | . 361 . 639 . . . . 159 . . 22 . 225 832 . 198 . 99 418 . . . . 3160 Explosive 10292 | . . . . . . 161 225 203 . 472 361 . 362 1196 849 608 . 297 445 . 381 . . 4732 Electromagnetic 625 | . . . . . . . . 367 . 48 183 . . . . . . . . . . . . 27 Impact . | . . . . . . . . . . . . . . . . . . . . . . . . . Slashing . | . . . . . . . . . . . . . . . . . . . . . . . . . Piercing 281 | . . . . . . . . . . . . . . . 189 92 . . . . . . . . Highest Corruption 21 | . . . . . . . . . 2 2 2 2 . 1 1 1 1 1 . 3 10 10 . 21 Average Corruption 1 | . . . . . . . . . 1 2 2 2 . 1 1 1 1 1 . 1 7 6 . 5 Corruption Purged 10 | . . . . . . . . . . . . . . . . . . . . . . 10 . . Effects 90 | . . . . . . . . . 11 15 12 1 . . 7 8 . 5 . 4 13 8 . 6 Message Errors 25 | . . . . . . . . . 5 4 4 . . . 2 2 . 1 . 1 2 3 . 1 Matter Fused 7 | . . . . . . . . . . . . . . . . . . . . 1 3 2 . 1 Heat Flow Errors 12 | . . . . . . . . . 1 2 2 1 . . . . . . . 1 3 1 . 1 Energy Discharges 21 | . . . . . . . . . 4 4 3 . . . 2 2 . 3 . . 3 . . . Data Loss (minor) 23 | . . . . . . . . . 1 5 3 . . . 3 4 . 1 . 1 2 2 . 1 Weapon Failures 2 | . . . . . . . . . . . . . . . . . . . . . . . . 2 Overload Shots 1 | . . . . . . . . . . . . . . . . . . . . . 1 . . . Overflow Damage 1641 | . . . . . . . 26 4 . . 6 . 25 324 128 337 . 48 158 118 . . . 467 Projectiles 793 | . . . . . . . . . . . . . . 63 123 267 . 32 7 118 . . . 183 Explosions 848 | . . . . . . . 26 4 . . 6 . 25 261 5 70 . 16 151 . . . . 284 Melee . | . . . . . . . . . . . . . . . . . . . . . . . . . Knockbacks 29 | . . . . . . . . . . . . . . 2 6 7 . 4 2 7 . . . 1 Impact 1 | . . . . . . . . . . . . . . . . . . . . . . . . 1 Kinetic 28 | . . . . . . . . . . . . . . 2 6 7 . 4 2 7 . . . . Secondary . | . . . . . . . . . . . . . . . . . . . . . . . . . Self-Inflicted Damage 507 | . . . . . . . . 36 . . . . . 134 . . . 51 47 . . . . 239 Shots 10 | . . . . . . . . 1 . . . . . 2 . . . 1 1 . . . . 5 Rammed 37 | . 4 9 . . . 2 . 9 4 . . . . . . . . . . . . . 3 6 Targets Rammed 43 | . 4 10 . . . 2 . 10 5 . . . . . . 1 . . . . . . 3 8 Kicked . | . . . . . . . . . . . . . . . . . . . . . . . . . Crushed 6 | . . 1 . . . . . 1 1 . . . . . . 1 . . . . . . . 2 Highest Temperature 468 | . 231 2 319 . . 16 378 87 209 245 268 256 58 94 97 159 . 220 52 164 275 232 34 468 Average Temperature 52 | . 76 2 69 . . 7 54 23 28 63 43 131 17 23 39 37 . 50 16 25 75 58 12 182 Received Heat Transfer 2800 | . 312 41 210 . . . 99 351 42 42 50 . 45 153 221 74 . 48 27 253 20 . 30 782 Effects 10 | . . . . . . . 3 . . 1 . . . . . . . . . . . . . 6 Shutdowns 2 | . . . . . . . . . . . . . . . . . . . . . . . . 2 Energy Bleed 2 | . . . . . . . . . . 1 . . . . . . . . . . . . . 1 Interference 3 | . . . . . . . 3 . . . . . . . . . . . . . . . . . Short Circuit 1 | . . . . . . . . . . . . . . . . . . . . . . . . 1 Damage (minor) 1 | . . . . . . . . . . . . . . . . . . . . . . . . 1 Damage (major) 1 | . . . . . . . . . . . . . . . . . . . . . . . . 1 Siege Activations 1 | . . . . . . . . . . . . . . . . . . . . . . . . 1 Total Turns 57 | . . . . . . . . . . . . . . . . . . . . . . . . 57 Longest Duration 57 | . . . . . . . . . . . . . . . . . . . . . . . . 57 Robots Corrupted 2 | . . . . . . . . 1 . . 1 . . . . . . . . . . . . . Combat Hostiles . | . . . . . . . . . . . . . . . . . . . . . . . . . Parts Fried 4 | . . . . . . . . 2 . . 2 . . . . . . . . . . . . . Impact Corruptions . | . . . . . . . . . . . . . . . . . . . . . . . . . Robots Melted 1 | . . . . . . . . . . . . . . . . . . . . . . . . 1 Combat Hostiles 1 | . . . . . . . . . . . . . . . . . . . . . . . . 1 Parts Melted 16 | . 2 . 3 . . . . . . . 1 . . 1 . . . . . 1 . . . 8 Heat Transferred 10135 | . 1147 . 1443 . . . . 150 . . 50 . 1523 525 . 1600 . 880 360 . . . . 2457 Parts Sabotaged . | . . . . . . . . . . . . . . . . . . . . . . . . . Parts Stolen . | . . . . . . . . . . . . . . . . . . . . . . . . . Parts Stripped . | . . . . . . . . . . . . . . . . . . . . . . . . . Power Chain Reactions 4 | . . . . . . . . 3 . . 1 . . . . . . . . . . . . . Missiles Intercepted . | . . . . . . . . . . . . . . . . . . . . . . . . . Alert | -11 -10 -10 -9 -9 -9 -8 -8 -8 -7 -7 -7 -7 -6 -6 -6 -6 -6 -5 -5 -5 -5 -5 -5 -4 ------- Run | Scr Mat Min Mat Min Exi Min Mat Sto Fac Low Low Zio Pro Fac Low Low Dat Pro Fac Ext Cet Arc Hub Fac Peak Influence 2349 | . 122 225 311 113 . 74 216 264 611 . . . . 1256 . . . . 494 1011 1571 802 284 2349 Initial 628 | . . 25 5 113 . . . 68 105 . . . . 37 . . . . 47 216 565 628 89 65 Average 311 | . 59 144 166 109 . 19 122 186 247 . . . . 508 . . . . 323 551 994 511 185 1005 Maximum Alert Level 5 | . . 1 1 . . . 1 1 2 . . . . 4 . . . . 2 3 4 3 1 5 Low Security (%) 45 | 100 100 47 60 100 . 100 96 44 60 . . . . 30 . . . . 19 . . . 45 14 Level 1 28 | . . 52 40 . . . 3 55 10 . . . . 10 . . . . 51 27 . 33 54 6 Level 2 14 | . . . . . . . . . 28 . . . . 34 . . . . 28 40 8 46 . 20 Level 3 5 | . . . . . . . . . . . . . . 2 . . . . . 31 59 20 . 11 Level 4 3 | . . . . . . . . . . . . . . 20 . . . . . . 31 . . 24 Level 5 1 | . . . . . . . . . . . . . . . . . . . . . . . . 21 High Security . | . . . . . . . . . . . . . . . . . . . . . . . . 2 Max Security . | . . . . . . . . . . . . . . . . . . . . . . . . . Squads Dispatched 55 | . 3 . 5 . . . 4 5 5 . . . . 8 . . . . 3 3 . . 5 14 Investigation 7 | . 1 . 1 . . . 1 1 . . . . . 1 . . . . 1 . . . 1 . Extermination 8 | . . . . . . . . . 3 . . . . 1 . . . . 1 . . . 1 2 Reinforcement 23 | . 2 . 4 . . . . 4 2 . . . . 2 . . . . 1 2 . . . 6 Assault 9 | . . . . . . . . . . . . . . 3 . . . . . 1 . . . 5 Garrison 8 | . . . . . . . 3 . . . . . . 1 . . . . . . . . 3 1 Intercept . | . . . . . . . . . . . . . . . . . . . . . . . . . Construction Impeded 3 | . . . 1 . . . . . . . . . . . . . . . . 1 . . . 1 Haulers Reinforced 2 | . . . . . . . . . . . . . . 1 . . . . . . . . . 1 Active Scanning Responses . | . . . . . . . . . . . . . . . . . . . . . . . . . Cargo Convoy Interrupts 2 | . . . . . . . . . 1 . . . . . . . . . . . . . . 1 Stealth | -11 -10 -10 -9 -9 -9 -8 -8 -8 -7 -7 -7 -7 -6 -6 -6 -6 -6 -5 -5 -5 -5 -5 -5 -4 --------- Run | Scr Mat Min Mat Min Exi Min Mat Sto Fac Low Low Zio Pro Fac Low Low Dat Pro Fac Ext Cet Arc Hub Fac Distress Signals 68 | . 1 1 2 . . . . 5 1 . . . 47 1 . . . . 1 3 3 . 2 1 Communications Jammed 185 | . . . . . . . . . . . . . . 21 . . . . 50 1 9 . . 104 Distress Signals 183 | . . . . . . . . . . . . . . 20 . . . . 49 1 9 . . 104 Times Spotted 502 | . 28 22 35 . . 4 10 57 19 11 11 . 28 40 9 16 . 12 15 51 27 13 10 84 Peak Tracking Total 14 | . 5 8 4 . . 3 3 7 5 5 3 . 4 7 4 4 . 4 5 8 9 1 2 14 Tactical Retreats 11 | . 1 1 2 . . . . . . . . . . . 1 3 . . 1 1 . . 1 . Traps | -11 -10 -10 -9 -9 -9 -8 -8 -8 -7 -7 -7 -7 -6 -6 -6 -6 -6 -5 -5 -5 -5 -5 -5 -4 ------- Run | Scr Mat Min Mat Min Exi Min Mat Sto Fac Low Low Zio Pro Fac Low Low Dat Pro Fac Ext Cet Arc Hub Fac Traps Triggered 14 | . 1 . 2 . . . . . . . . . 2 2 . . . . 1 5 . . 1 . Indirectly . | . . . . . . . . . . . . . . . . . . . . . . . . . Trap Hack Attempts 114 | . 20 . . . . . 63 31 . . . . . . . . . . . . . . . . Triggered . | . . . . . . . . . . . . . . . . . . . . . . . . . Disarmed 2 | . 1 . . . . . 1 . . . . . . . . . . . . . . . . . Reprogrammed 7 | . 3 . . . . . 3 1 . . . . . . . . . . . . . . . . Reused 12 | . 2 . . . . . . 1 . . . . 6 . . . . 3 . . . . . . Traps Extracted . | . . . . . . . . . . . . . . . . . . . . . . . . . Installed 16 | . . . . . . . . . . . . . 12 . . . . 4 . . . . . . Triggered 14 | . 2 . . . . . . 1 2 . . . 6 . . . . 3 . . . . . . Exploded 3 | . . . . . . . . 2 1 . . . . . . . . . . . . . . . Machines | -11 -10 -10 -9 -9 -9 -8 -8 -8 -7 -7 -7 -7 -6 -6 -6 -6 -6 -5 -5 -5 -5 -5 -5 -4 ---------- Run | Scr Mat Min Mat Min Exi Min Mat Sto Fac Low Low Zio Pro Fac Low Low Dat Pro Fac Ext Cet Arc Hub Fac Machines Disabled 52 | . . . 1 . . . . 3 . 1 . . 2 8 . . . . 2 1 4 2 3 25 Max in Single Turn 6 | . . . 1 . . . . 1 . 1 . . 1 6 . . . . 2 1 1 . 1 4 Garrison Access 5 | . . . . . . . . 1 . . . . . 2 . . . . 1 . . . . 1 Network Hub 1 | . . . . . . . . . . . . . . . . . . . . . . . 1 . Machines Sabotaged . | . . . . . . . . . . . . . . . . . . . . . . . . . Garrisons Compromised 1 | . . . . . . . . . 1 . . . . . . . . . . . . . . . Overloaded Fab Kills . | . . . . . . . . . . . . . . . . . . . . . . . . . Fab Network Shutdowns 1 | . . . . . . . . . 1 . . . . . . . . . . . . . . . Hacking | -11 -10 -10 -9 -9 -9 -8 -8 -8 -7 -7 -7 -7 -6 -6 -6 -6 -6 -5 -5 -5 -5 -5 -5 -4 --------- Run | Scr Mat Min Mat Min Exi Min Mat Sto Fac Low Low Zio Pro Fac Low Low Dat Pro Fac Ext Cet Arc Hub Fac Machines Accessed 52 | . 3 . 3 . 1 . 3 15 9 . . 1 . 7 1 . 3 . 1 . . . 1 4 Terminals 18 | . 1 . 1 . . . 2 10 4 . . . . . . . . . . . . . . . Fabricators 5 | . . . . . . . . . 2 . . . . 2 . . . . . . . . . 1 Repair Stations 7 | . 1 . . . . . . 2 1 . . . . 2 . . . . . . . . . 1 Recycling Units 9 | . 1 . 2 . . . . 2 1 . . . . 1 . . . . . . . . . 2 Scanalyzers 2 | . . . . . . . . . 1 . . . . 1 . . . . . . . . . . Garrison Access 5 | . . . . . . . 1 1 . . . . . 1 . . . . 1 . . . 1 . Total Hacks 188 | . 12 . 10 . 1 . 14 54 33 . . 3 . 17 1 . 23 . 1 . . . 2 17 Successful 119 | . 8 . 3 . 1 . 9 34 17 . . 3 . 12 1 . 23 . 1 . . . . 7 Failed 68 | . 4 . 7 . . . 4 20 16 . . . . 5 . . . . . . . . 2 10 Catastrophic 9 | . . . . . . . 1 3 2 . . . . . . . . . . . . . . 3 Database Lockouts 1 | . . . . . . . 1 . . . . . . . . . . . . . . . . . Manual 105 | . 5 . 4 . . . 10 15 13 . . . . 5 . . . . 13 11 10 . 15 4 Terminals 53 | . 4 . 3 . . . 10 26 10 . . . . . . . . . . . . . . . Fabricators 24 | . . . . . . . . . 13 . . . . 5 . . . . . . . . . 6 Repair Stations 39 | . 6 . . . . . . 19 3 . . . . 6 . . . . . . . . . 5 Recycling Units 26 | . 2 . 7 . . . . 7 2 . . . . 2 . . . . . . . . . 6 Scanalyzers 8 | . . . . . . . . . 5 . . . . 3 . . . . . . . . . . Garrison Access 10 | . . . . . . . 4 2 . . . . . 1 . . . . 1 . . . 2 . Terminal Hacks 47 | . 2 . 1 . 1 . 4 9 3 . . 3 . . 1 . 23 . . . . . . . Record 7 | . . . . . 1 . . . . . . . . . . . 6 . . . . . . . Part Schematic 11 | . . . . . . . . . . . . 3 . . . . 8 . . . . . . . Robot Schematic 7 | . . . . . . . . . 1 . . . . . . . 6 . . . . . . . Robot Analysis 4 | . 2 . 1 . . . 1 . . . . . . . . . . . . . . . . . Prototype ID Bank 5 | . . . . . . . 2 . . . . . . . . . 3 . . . . . . . Open Door 7 | . . . . . . . . 6 . . . . . . 1 . . . . . . . . . Branch Access Points 1 | . . . . . . . 1 . . . . . . . . . . . . . . . . . Unreport Threat 3 | . . . . . . . . 2 1 . . . . . . . . . . . . . . . Locate Traps 2 | . . . . . . . . 1 1 . . . . . . . . . . . . . . . Fabricator Hacks 7 | . . . . . . . . . 5 . . . . 1 . . . . . . . . . 1 Load Schematic 1 | . . . . . . . . . 1 . . . . . . . . . . . . . . . Build 6 | . . . . . . . . . 4 . . . . 1 . . . . . . . . . 1 Repair Station Hacks 28 | . 4 . . . . . . 16 2 . . . . 4 . . . . . . . . . 2 Scan Component 14 | . 2 . . . . . . 8 1 . . . . 2 . . . . . . . . . 1 Repair 14 | . 2 . . . . . . 8 1 . . . . 2 . . . . . . . . . 1 Recycling Unit Hacks 9 | . 1 . 1 . . . . 2 . . . . . 1 . . . . . . . . . 4 Recycle Component 1 | . . . . . . . . . . . . . . . . . . . . . . . . 1 Process 1 | . . . . . . . . . . . . . . . . . . . . . . . . 1 Report Inventory 1 | . . . . . . . . . . . . . . . . . . . . . . . . 1 Retrieve Matter 1 | . . . . . . . . . . . . . . . . . . . . . . . . 1 Retrieve Components 5 | . 1 . 1 . . . . 2 . . . . . 1 . . . . . . . . . . Scanalyzer 6 | . . . . . . . . . 3 . . . . 3 . . . . . . . . . . Insert Component 2 | . . . . . . . . . 1 . . . . 1 . . . . . . . . . . Analyze 4 | . . . . . . . . . 2 . . . . 2 . . . . . . . . . . Garrison Access Hacks 2 | . . . . . . . . 1 . . . . . 1 . . . . . . . . . . Seal Access 2 | . . . . . . . . 1 . . . . . 1 . . . . . . . . . . Unauthorized Hacks 20 | . 1 . 1 . . . 5 6 4 . . . . 2 . . . . 1 . . . . . Terminals 8 | . . . . . . . 2 4 2 . . . . . . . . . . . . . . . Track 2 | . . . . . . . 1 1 . . . . . . . . . . . . . . . . Assimilate 1 | . . . . . . . . . 1 . . . . . . . . . . . . . . . Botnet 3 | . . . . . . . 1 1 1 . . . . . . . . . . . . . . . Disrupt 1 | . . . . . . . . 1 . . . . . . . . . . . . . . . . Operators 1 | . . . . . . . . 1 . . . . . . . . . . . . . . . . Fabricators 3 | . . . . . . . . . 2 . . . . 1 . . . . . . . . . . Prioritize 2 | . . . . . . . . . 2 . . . . . . . . . . . . . . . Download 1 | . . . . . . . . . . . . . . 1 . . . . . . . . . . Repair Stations . | . . . . . . . . . . . . . . . . . . . . . . . . . Recycling Units 5 | . 1 . 1 . . . . 2 . . . . . 1 . . . . . . . . . . Mask 4 | . . . 1 . . . . 2 . . . . . 1 . . . . . . . . . . Tunnel 1 | . 1 . . . . . . . . . . . . . . . . . . . . . . . Scanalyzers . | . . . . . . . . . . . . . . . . . . . . . . . . . Garrison Access 4 | . . . . . . . 3 . . . . . . . . . . . 1 . . . . . Reprogram 3 | . . . . . . . 3 . . . . . . . . . . . . . . . . . Jam 1 | . . . . . . . . . . . . . . . . . . . 1 . . . . . Data Cores Recovered . | . . . . . . . . . . . . . . . . . . . . . . . . . Used . | . . . . . . . . . . . . . . . . . . . . . . . . . Hacking Detections 27 | . 3 . 3 . . . 2 4 8 . . . . 3 . . . . . . . . 1 3 Full Trace Events 2 | . . . . . . . 1 1 . . . . . . . . . . . . . . . . Feedback Events . | . . . . . . . . . . . . . . . . . . . . . . . . . Feedback Blocked . | . . . . . . . . . . . . . . . . . . . . . . . . . Robot Schematics Acquired 7 | . . . . . . . . . 1 . . . . . . . 6 . . . . . . . Robots Built 5 | . . . . . . . . . 5 . . . . . . . . . . . . . . . Matter 756 | . . . . . . . . . 756 . . . . . . . . . . . . . . . Time 335 | . . . . . . . . . 335 . . . . . . . . . . . . . . . Total Robot Build Rating 20 | . . . . . . . . . 20 . . . . . . . . . . . . . . . Part Schematics Acquired 22 | . . . . . . . . . 1 . . 3 . 2 . . 8 . . 8 . . . . Parts Built 3 | . . . . . . . . . . . . . . 2 . . . . . . . . . 1 Matter 534 | . . . . . . . . . . . . . . 256 . . . . . . . . . 278 Time 133 | . . . . . . . . . . . . . . 64 . . . . . . . . . 69 Total Part Build Rating 25 | . . . . . . . . . . . . . . 16 . . . . . . . . . 9 Parts Repaired 14 | . 2 . . . . . . 8 1 . . . . 2 . . . . . . . . . 1 Time 585 | . 52 . . . . . . 356 19 . . . . 104 . . . . . . . . . 54 Parts Recycled 1 | . . . . . . . . . . . . . . . . . . . . . . . . 1 Recycled Matter 91 | . . . . . . . . . . . . . . . . . . . . . . . . 91 Retrieved Matter 91 | . . . . . . . . . . . . . . . . . . . . . . . . 91 Retrieved Components 28 | . 10 . 2 . . . . 14 . . . . . 2 . . . . . . . . . . Parts Scanalyzed 2 | . . . . . . . . . 1 . . . . 1 . . . . . . . . . . Part Schematics Acquired 2 | . . . . . . . . . 1 . . . . 1 . . . . . . . . . . Parts Damaged . | . . . . . . . . . . . . . . . . . . . . . . . . . Bothacking | -11 -10 -10 -9 -9 -9 -8 -8 -8 -7 -7 -7 -7 -6 -6 -6 -6 -6 -5 -5 -5 -5 -5 -5 -4 ------------ Run | Scr Mat Min Mat Min Exi Min Mat Sto Fac Low Low Zio Pro Fac Low Low Dat Pro Fac Ext Cet Arc Hub Fac Used RIF Installer . | . . . . . . . . . . . . . . . . . . . . . . . . . Robots Hacked 3 | . . . . . . . . . . . . . . . . . . . 1 . . 1 1 . Non-combat . | . . . . . . . . . . . . . . . . . . . . . . . . . Combat 3 | . . . . . . . . . . . . . . . . . . . 1 . . 1 1 . Robot Hacks Applied 3 | . . . . . . . . . . . . . . . . . . . 1 . . 1 1 . parse_system 3 | . . . . . . . . . . . . . . . . . . . 1 . . 1 1 . Relay Couplers Released 5 | . . . . . . . . . . . . . . 2 . . . . . . . . . 3 Machine Destruction 5 | . . . . . . . . . . . . . . 2 . . . . . . . . . 3 Robots Rewired 40 | . . . . . . . . . . 4 . . 5 . 2 1 . . . 28 . . . . Allies Hacked 1 | . . . . . . . . . . . . . . . . . . . 1 . . . . . Hacks Repelled . | . . . . . . . . . . . . . . . . . . . . . . . . . Allies | -11 -10 -10 -9 -9 -9 -8 -8 -8 -7 -7 -7 -7 -6 -6 -6 -6 -6 -5 -5 -5 -5 -5 -5 -4 -------- Run | Scr Mat Min Mat Min Exi Min Mat Sto Fac Low Low Zio Pro Fac Low Low Dat Pro Fac Ext Cet Arc Hub Fac Total Allies 73 | . . 1 . . . . 3 . 8 4 . 4 5 . 2 1 . 1 3 34 6 . 1 . Largest Group 17 | . . 1 . . . . 3 3 5 5 5 8 9 9 3 4 2 3 3 17 17 9 6 1 Highest-Rated Group 965 | . . 31 . . . . 45 45 192 188 153 273 288 288 85 100 55 150 210 624 965 732 500 180 Highest-Rated Ally 180 | . . 31 . . . . 15 15 40 40 40 40 40 40 40 40 40 95 70 156 180 180 180 180 Zionite Dispatches 7 | . . . . . . . . . . . . . . . . . . . 2 1 3 . 1 . Heavy 2 | . . . . . . . . . . . . . . . . . . . . . 2 . . . Light 1 | . . . . . . . . . . . . . . . . . . . 1 . . . . . Recon 1 | . . . . . . . . . . . . . . . . . . . 1 . . . . . Hacker 1 | . . . . . . . . . . . . . . . . . . . . 1 . . . . Hero 1 | . . . . . . . . . . . . . . . . . . . . . 1 . . . Kinetic Resupply 1 | . . . . . . . . . . . . . . . . . . . . . . . 1 . Total Orders 74 | . . . . . . . . . . 8 5 2 5 6 12 12 . 13 2 7 . . 2 . STAY 37 | . . . . . . . . . . 6 2 1 2 3 6 6 . 5 1 4 . . 1 . FOLLOW 33 | . . . . . . . . . . 2 3 1 3 3 6 5 . 6 1 3 . . . . DROP 2 | . . . . . . . . . . . . . . . . . . 1 . . . . 1 . PICKUP 2 | . . . . . . . . . . . . . . . . 1 . 1 . . . . . . Ally Attacks 787 | . . 6 . . . . . 20 10 30 50 . 77 96 . 32 . 4 19 202 112 34 25 70 Total Damage 22974 | . . 42 . . . . . 463 187 758 951 . 1526 3109 . 491 . 137 521 4000 4951 1603 1143 3092 Kills 138 | . . . . . . . . 3 1 1 4 . 11 24 . 3 . . 2 32 27 4 10 16 Allies Corrupted 1 | . . . . . . . . . . . . . . . . 1 . . . . . . . . Allies Melted . | . . . . . . . . . . . . . . . . . . . . . . . . . Intel | -11 -10 -10 -9 -9 -9 -8 -8 -8 -7 -7 -7 -7 -6 -6 -6 -6 -6 -5 -5 -5 -5 -5 -5 -4 ------- Run | Scr Mat Min Mat Min Exi Min Mat Sto Fac Low Low Zio Pro Fac Low Low Dat Pro Fac Ext Cet Arc Hub Fac Robot Analysis Total 4 | . 2 . 1 . . . 1 . . . . . . . . . . . . . . . . . Derelict Logs Recovered 10 | . . 2 . 1 . . . . . 1 2 . . . 2 1 . 1 . . . . . . Drone Launches . | . . . . . . . . . . . . . . . . . . . . . . . . . Drone Recoveries . | . . . . . . . . . . . . . . . . . . . . . . . . . Zionite Intel Received 6 | . . . . . . . . . . . . . . . . . . . 1 2 1 . 2 . Emergency Access 1 | . . . . . . . . . . . . . . . . . . . . . . . 1 . Prototype Schematics 1 | . . . . . . . . . . . . . . . . . . . . 1 . . . . Unaware Analyses 3 | . . . . . . . . . . . . . . . . . . . . 1 1 . 1 . Trap Installations 1 | . . . . . . . . . . . . . . . . . . . 1 . . . . . Exploration | -11 -10 -10 -9 -9 -9 -8 -8 -8 -7 -7 -7 -7 -6 -6 -6 -6 -6 -5 -5 -5 -5 -5 -5 -4 ------------- Run | Scr Mat Min Mat Min Exi Min Mat Sto Fac Low Low Zio Pro Fac Low Low Dat Pro Fac Ext Cet Arc Hub Fac Turns Passed 37265 | 7 1480 529 1675 412 646 967 970 4971 2019 1628 1765 2070 4001 1788 1491 2545 127 1630 724 1448 396 1792 1032 1152 Spaces Moved 18082 | 3 663 322 832 253 401 574 352 1895 1167 929 1007 1308 1932 1068 754 1171 78 841 427 735 219 222 499 430 Core 166 | . . 68 . . . . . . . . . . . . . . . . . . . 93 . 5 Treads 14747 | 3 663 254 147 253 401 574 170 1895 1167 929 1007 1308 1932 410 754 1171 78 523 . . 55 129 499 425 Legs . | . . . . . . . . . . . . . . . . . . . . . . . . . Wheels 3169 | . . . 685 . . . 182 . . . . . . 658 . . . 318 427 735 164 . . . Hover . | . . . . . . . . . . . . . . . . . . . . . . . . . Flight . | . . . . . . . . . . . . . . . . . . . . . . . . . Fastest Speed 50 | 160 160 50 115 160 160 160 145 145 151 151 155 153 155 130 163 161 161 130 130 130 130 160 160 50 Average Speed 164 | 160 160 136 145 160 160 160 193 186 151 151 156 154 157 142 163 162 161 154 131 137 140 728 160 158 Slowest Speed 1450 | 160 160 160 160 160 160 160 260 263 151 157 157 155 161 163 163 163 161 161 145 145 160 1450 160 160 Overloaded Moves . | . . . . . . . . . . . . . . . . . . . . . . . . . Propulsion Burnouts . | . . . . . . . . . . . . . . . . . . . . . . . . . Robots Hopped . | . . . . . . . . . . . . . . . . . . . . . . . . . Cave-ins Triggered . | . . . . . . . . . . . . . . . . . . . . . . . . . Exploration Rate (%) 63 | 3 69 64 51 53 76 99 23 94 23 94 97 90 79 31 78 97 72 67 11 91 84 90 33 21 Regions Visited 24 Branch Regions 17 Pre-discovered Areas 9 | . 1 1 . 2 . . . . . . 2 1 . . . 1 1 . . . . . . . Known Exits Taken 17 | . . . . . . 1 1 . 1 1 1 1 1 1 1 1 1 1 1 1 1 1 1 . Unknown Exits Taken 7 | 1 1 1 1 1 1 . . 1 . . . . . . . . . . . . . . . . Scrap Searched 22 | . . 1 . 1 . 2 . . . 3 3 3 1 . 1 4 . 3 . . . . . . Spaces Dug 129 | . . . . . . . 10 1 1 14 . . . 14 1 21 . 24 8 . . . 7 28 Terrain Destroyed 794 | . . . . . . 4 13 24 1 49 42 . 7 120 42 71 . 82 57 10 12 7 7 246 Melee 5 | . . . . . . . . 1 1 1 . . . . . . . . 2 . . . . . Projectile 111 | . . . . . . . . . . . . . . 7 9 22 . 19 10 10 1 7 7 19 AOE 676 | . . . . . . 4 13 23 . 48 42 . 7 113 33 49 . 63 45 . 11 . . 225 Terrain Rammed . | . . . . . . . . . . . . . . . . . . . . . . . . . Walls Destroyed . | . . . . . . . . . . . . . . . . . . . . . . . . . Machines Disabled . | . . . . . . . . . . . . . . . . . . . . . . . . . Actions | -11 -10 -10 -9 -9 -9 -8 -8 -8 -7 -7 -7 -7 -6 -6 -6 -6 -6 -5 -5 -5 -5 -5 -5 -4 --------- Run | Scr Mat Min Mat Min Exi Min Mat Sto Fac Low Low Zio Pro Fac Low Low Dat Pro Fac Ext Cet Arc Hub Fac Total 23789 | 4 957 371 1143 260 407 599 589 3150 1349 1104 1142 1353 2757 1236 953 1659 79 1083 530 1016 296 373 708 671 Wait 3578 | . 172 12 143 5 . . 102 1024 101 39 76 30 659 46 148 387 1 142 28 99 31 118 171 44 Move 18058 | 2 662 321 831 252 400 573 351 1894 1166 928 1006 1307 1931 1067 753 1170 77 840 426 734 218 221 498 430 Hop . | . . . . . . . . . . . . . . . . . . . . . . . . . Pick Up 157 | . 10 1 29 1 3 3 8 14 5 2 . 4 20 14 2 . . 10 7 2 6 2 1 13 Fast Attach 92 | . 6 3 10 . . 1 4 9 2 2 1 4 5 7 . 1 . 5 5 7 7 5 3 5 Attach 54 | . 2 1 7 . . . 1 1 4 . . . 4 7 . . . 2 4 2 1 1 . 17 Detach 30 | . . 1 8 . . 1 1 1 2 . . 1 4 2 . . . 1 . 1 3 1 . 3 Swap 284 | 2 5 . 9 1 . 5 13 26 23 17 18 . 14 17 14 19 1 19 13 35 5 2 7 19 Drop 207 | . 8 5 22 1 4 2 14 29 6 4 1 7 24 17 2 1 . 13 9 8 14 6 5 5 Fire 942 | . 67 17 78 . . 12 32 106 34 24 40 . 70 51 27 76 . 47 35 53 11 16 19 127 Melee 96 | . 1 . 6 . . . . 5 1 1 . . 12 . 2 4 . . 3 59 . 1 1 . Ram . | . . . . . . . . . . . . . . . . . . . . . . . . . Kick . | . . . . . . . . . . . . . . . . . . . . . . . . . Crush 43 | . 4 10 . . . 2 . 10 5 . . . . . . 1 . . . . . . 3 8 Escape Stasis 26 | . . . . . . . . . . . . . 2 8 . . . . . 16 . . . . Rewire 92 | . . . . . . . . . . 87 . . . . 5 . . . . . . . . . Trap 130 | . 20 . . . . . 63 31 . . . . 12 . . . . 4 . . . . . . Miscellaneous . | . . . . . . . . . . . . . . . . . . . . . . . . . Route ------- -11/Scrapyard -10/Materials (discovered 2 exits: *Mat / [*Min]) -10/Mines (discovered 2 exits: *Mat x2) -9/Materials (discovered 2 exits: Mat / [*Min]) -9/Mines (discovered 3 exits: *Mat x2 / *Exi) -9/Exiles -8/Mines (discovered 2 exits: *Mat x2) -8/Materials -8/Storage -7/Factory (discovered 2 exits: *Fac / *Low) -7/Lower Caves -7/Lower Caves (discovered 2 exits: *Fac / *Zio) -7/Zion -6/Proximity Caves -6/Factory (discovered 3 exits: *Fac / *Low x2) -6/Lower Caves (discovered 2 exits: *Low / *Dat) -6/Lower Caves (discovered 2 exits: *Fac / *Dat) -6/Data Miner -5/Proximity Caves -5/Factory (discovered 3 exits: Fac / [*Upp] / *Ext) -5/Extension (discovered 2 exits: *Fac / *Cet) -5/Cetus (discovered 2 exits: *Fac / *Arc) -5/Archives (discovered 3 exits: *Fac / *Hub x2) -5/Hub_04(d) -4/Factory (discovered 2 exits: *Res / *Upp) History --------- Turn | Location | Event 4 | -11/Scrapyard | Discovered new exit (range 2) 8 | -11/Scrapyard | Entered Materials 314 | -10/Materials | Build established: Mutant 488 | -10/Materials | Lost 3 parts (1p2w) 559 | -10/Materials | Discovered new exit (range 12) 616 | -10/Materials | Discovered new exit (range 9) 654 | -10/Materials | Repaired Lgt. Treads 682 | -10/Materials | Repaired Lgt. Treads 1488 | -10/Materials | Entered Mines 1489 | -10/Mines | Met a Derelict bent on vengeance 1637 | -10/Mines | Discovered new exit (range 5) 1666 | -10/Mines | Learned 2 Materials zone layouts 1810 | -10/Mines | Learned location of Zion (-7) 1842 | -10/Mines | Discovered new exit (range 8) 1845 | -10/Mines | Received a Mining Laser from a helpful Derelict 1955 | -10/Mines | Assembled infested the area 1980 | -10/Mines | Core integrity fell below 50% 2017 | -10/Mines | Entered Materials 2017 | -9/Materials | Evolved 2 slots: Propulsion x1, Utility x1 2018 | -9/Materials | Identified exit to Materials 2923 | -9/Materials | Build established: Scavenger-Mutant 3321 | -9/Materials | Discovered new exit (range 6) 3692 | -9/Materials | Entered Mines 3803 | -9/Mines | Received a Rocket Launcher from a helpful Derelict 3958 | -9/Mines | Discovered exit to Materials (range 10) 4049 | -9/Mines | Discovered exit to Materials (range 9) 4050 | -9/Mines | Learned location of Storage (-8) 4097 | -9/Mines | Deemed a non-threat by the Exiles lab entrance 4097 | -9/Mines | Discovered new exit (range 5) 4104 | -9/Mines | Entered Exiles 4104 | -9/Exiles | Found Exiles lab abandoned 4734 | -9/Exiles | Discovered new exit (range 12) 4750 | -9/Exiles | Entered Mines 4760 | -8/Mines | Discovered exit to Materials (range 8) 4762 | -8/Mines | Discovered exit to Materials (range 14) 5717 | -8/Mines | Entered Materials 5717 | -8/Materials | Evolved 2 slots: Utility x1, Weapon x1 5745 | -8/Materials | Discovered new exit (range 14) 6205 | -8/Materials | Identified exit to Storage 6205 | -8/Materials | Central database locked down 6410 | -8/Materials | Build established: Scavenger-Tank 6687 | -8/Materials | Entered Storage 6687 | -8/Storage | Accompanied by 3 allies 7219 | -8/Storage | Build established: Tank 7659 | -8/Storage | Repaired Imp. Signal Interpreter 7711 | -8/Storage | Repaired Imp. Assault Rifle 7763 | -8/Storage | Repaired Imp. Assault Rifle 8300 | -8/Storage | Build established: Scavenger-Tank 8515 | -8/Storage | Discovered new exit (range 9) 9330 | -8/Storage | Build established: Tank 9413 | -8/Storage | Repaired Arm. Treads 9452 | -8/Storage | Repaired Arm. Treads 9504 | -8/Storage | Repaired Imp. Assault Rifle 9649 | -8/Storage | Repaired Imp. Assault Rifle 9689 | -8/Storage | Repaired Hvy. Assault Cannon 9825 | -8/Storage | Found Prototype Launcher 9825 | -8/Storage | Identified Gui. Missile Launcher 10125 | -8/Storage | Build established: Mutant 11658 | -8/Storage | Entered Factory 11658 | -7/Factory | Evolved 2 slots: Propulsion x1, Utility x1 12012 | -7/Factory | Discovered new exit (range 7) 12027 | -7/Factory | Identified exit to Lower Caves 12724 | -7/Factory | Cargo convoy interrupted 12732 | -7/Factory | Repaired Adv. Treads? 13070 | -7/Factory | Discovered new exit (range 12) 13120 | -7/Factory | Build established: Skirmisher 13247 | -7/Factory | Fabricated I-36 Angel? 13337 | -7/Factory | Fabricated X-62 Marksman? 13422 | -7/Factory | Fabricated X-62 Marksman? 13461 | -7/Factory | Local fabrication network quarantined 13677 | -7/Factory | Entered Lower Caves 13677 | -7/Lower Caves | Accompanied by 5 allies 13678 | -7/Lower Caves | Encountered a Warlord checkpoint 13700 | -7/Lower Caves | Spotted B-75 Beast 13731 | -7/Lower Caves | Destroyed B-75 Beast 13841 | -7/Lower Caves | Learned location of 1 exit from Proximity Caves 14472 | -7/Lower Caves | Attacked by a delusional Derelict stockpiling Unaware 14878 | -7/Lower Caves | Build established: Commander-Skirmisher 15220 | -7/Lower Caves | Discovered new exit (range 11) 15264 | -7/Lower Caves | Attracted the attention of an 0b10 checkpoint 15267 | -7/Lower Caves | Identified exit to Lower Caves 15305 | -7/Lower Caves | Entered another Lower Caves area 15305 | -7/Lower Caves | Accompanied by 5 allies 15367 | -7/Lower Caves | Discovered new exit (range 12) 16056 | -7/Lower Caves | Build established: Commander-Mutant 16305 | -7/Lower Caves | Spotted B-75 Beast 16315 | -7/Lower Caves | Destroyed B-75 Beast 16639 | -7/Lower Caves | Discovered new exit (range 7) 16653 | -7/Lower Caves | Identified exit to Zion 16656 | -7/Lower Caves | Attracted the attention of an 0b10 checkpoint 17070 | -7/Lower Caves | Entered Zion 17070 | -7/Zion | Accompanied by 4 allies 17093 | -7/Zion | Found GAL Module 17142 | -7/Zion | System corruption cleaned by Quarantine Array 17202 | -7/Zion | Discovered new exit (range 10) 17348 | -7/Zion | Given A8's code to call for help 17868 | -7/Zion | Found CR-A16's Pointy Stick 18129 | -7/Zion | Learned location of Warlord (-4) 18758 | -7/Zion | Imprinted 18760 | -7/Zion | Declared Zion's savior 19126 | -7/Zion | Identified exit to Proximity Caves 19140 | -7/Zion | Entered Proximity Caves 19140 | -6/Proximity Caves | Accompanied by 8 allies 19141 | -6/Proximity Caves | Identified exit to Factory 19523 | -6/Proximity Caves | Build established: Commander-Skirmisher 20181 | -6/Proximity Caves | Build established: Commander-Mutant 21448 | -6/Proximity Caves | Build established: Commander-Tank 21933 | -6/Proximity Caves | Attracted the attention of an 0b10 outpost 23141 | -6/Proximity Caves | Entered Factory 23141 | -6/Factory | Accompanied by 9 allies 23141 | -6/Factory | Evolved 2 slots: Propulsion x1, Utility x1 23233 | -6/Factory | Build established: Commander-Skirmisher 23609 | -6/Factory | Fabricated Adv. Force Field? 24075 | -6/Factory | Build established: Commander-Tank 24147 | -6/Factory | Repaired Med. Reactive Plating 24172 | -6/Factory | Discovered new exit (range 17) 24192 | -6/Factory | Identified exit to Lower Caves 24208 | -6/Factory | Repaired Enh. Autogun? 24395 | -6/Factory | Terminal network hard line cut 24481 | -6/Factory | Garrison activated, responded to threat 24541 | -6/Factory | First assault squad dispatched 24584 | -6/Factory | Build established: Scavenger-Tank 24600 | -6/Factory | Destroyed 19 combat bots 24602 | -6/Factory | Discovered new exit (range 15) 24631 | -6/Factory | Discovered exit to Lower Caves (range 17) 24929 | -6/Factory | Entered Lower Caves 24929 | -6/Lower Caves | Accompanied by 1 ally 24970 | -6/Lower Caves | Build established: Scavenger-Skirmisher 25283 | -6/Lower Caves | Learned 8 Factory zone layouts 25656 | -6/Lower Caves | Attacked by a faux Warlord 25749 | -6/Lower Caves | A Derelict revealed a hidden shortcut to meet someone special 26118 | -6/Lower Caves | Identified exit to Lower Caves 26277 | -6/Lower Caves | Encountered a Warlord checkpoint 26420 | -6/Lower Caves | Entered another Lower Caves area 26420 | -6/Lower Caves | Accompanied by 3 allies 26464 | -6/Lower Caves | Discovered new exit (range 18) 26892 | -6/Lower Caves | Build established: Scavenger-Mutant 27732 | -6/Lower Caves | Build established: Scavenger-Skirmisher 27743 | -6/Lower Caves | Attracted the attention of an 0b10 checkpoint 27846 | -6/Lower Caves | Encountered a Warlord checkpoint 28650 | -6/Lower Caves | Discovered new exit (range 9) 28662 | -6/Lower Caves | Identified exit to Data Miner 28965 | -6/Lower Caves | Entered Data Miner 28965 | -6/Data Miner | Accompanied by 2 allies 28965 | -6/Data Miner | Discovered new exit (range 6) 28991 | -6/Data Miner | Met Data Miner 29027 | -6/Data Miner | Learned location of Section 7 (-2) 29027 | -6/Data Miner | Acquired the access code to Warlord's prototype stash 29049 | -6/Data Miner | Received God Mode back door access code from Data Miner 29089 | -6/Data Miner | Identified exit to Proximity Caves 29092 | -6/Data Miner | Entered Proximity Caves 29092 | -5/Proximity Caves | Accompanied by 2 allies 29230 | -5/Proximity Caves | Escorted by Enhanced Grunt 29354 | -5/Proximity Caves | Attracted the attention of an 0b10 checkpoint 29751 | -5/Proximity Caves | Build established: Scavenger-Mutant 29920 | -5/Proximity Caves | Spotted B-75 Beast 30422 | -5/Proximity Caves | Learned Factory terminal intel 30646 | -5/Proximity Caves | Discovered new exit (range 13) 30664 | -5/Proximity Caves | Identified exit to Factory 30722 | -5/Proximity Caves | Entered Factory 30722 | -5/Factory | Accompanied by 1 ally 30722 | -5/Factory | Evolved 2 slots: Propulsion x1, Utility x1 30723 | -5/Factory | Identified exit to Factory 30724 | -5/Factory | Loaded intel: 22 terminal locations 30892 | -5/Factory | Incoming investigation squad redirected 31037 | -5/Factory | Discovered new exit (range 19) 31174 | -5/Factory | Retrieved Zion intel report: Trap Installations 31175 | -5/Factory | Zion Recon squad teleported in 31250 | -5/Factory | Zion Light squad teleported in 31438 | -5/Factory | Discovered new exit (range 5) 31442 | -5/Factory | Identified exit to Extension 31446 | -5/Factory | Entered Extension 31446 | -5/Extension | Accompanied by 2 allies 31637 | -5/Extension | Found Zio. Weapon Casing 32291 | -5/Extension | Build established: Commander-Tank 32295 | -5/Extension | Spotted B-75 Beast 32308 | -5/Extension | Destroyed B-75 Beast 32319 | -5/Extension | Spotted B-75 Beast 32334 | -5/Extension | Allies destroyed B-75 Beast 32346 | -5/Extension | First assault squad dispatched 32369 | -5/Extension | Zion Hacker squad teleported in 32642 | -5/Extension | Rescued A7 32644 | -5/Extension | Retrieved Zion intel report: Unaware Analyses 32733 | -5/Extension | Rescued a captive Derelict 32733 | -5/Extension | Retrieved Zion intel report: Prototype Schematics 32734 | -5/Extension | Rescued a captive Derelict 32758 | -5/Extension | Terminal network hard line cut 32766 | -5/Extension | Rescued a captive Derelict 32863 | -5/Extension | Discovered exit to Factory (range 14) 32869 | -5/Extension | Discovered new exit (range 6) 32876 | -5/Extension | Identified exit to Cetus 32894 | -5/Extension | Entered Cetus 32894 | -5/Cetus | Accompanied by 17 allies (A7) 32899 | -5/Cetus | Acquired a Cetus Manufacturing Module code from A7 32910 | -5/Cetus | Spotted Cetus Guard 32910 | -5/Cetus | Spotted Cetus Guard 32911 | -5/Cetus | Spotted Cetus Guard 32913 | -5/Cetus | Spotted Cetus Guard 32923 | -5/Cetus | Allies destroyed Cetus Guard 32925 | -5/Cetus | Allies destroyed Cetus Guard 32926 | -5/Cetus | Allies destroyed Cetus Guard 32932 | -5/Cetus | Allies destroyed Cetus Guard 33000 | -5/Cetus | Started Cetus Manufacturing Module 33015 | -5/Cetus | Zion hero teleported in (7V-RTL) 33021 | -5/Cetus | Escorted A7 to Cetus Mainframe 33025 | -5/Cetus | Manufactured an Enhanced Grunt 33036 | -5/Cetus | Cetus Manufacturing Module disabled 33067 | -5/Cetus | Retrieved Zion intel report: Unaware Analyses 33068 | -5/Cetus | Zion Heavy squad teleported in 33110 | -5/Cetus | Zion Heavy squad teleported in 33119 | -5/Cetus | Discovered new exit (range 20) 33146 | -5/Cetus | Spotted Cetus Guard 33147 | -5/Cetus | Spotted Cetus Guard 33150 | -5/Cetus | Spotted Cetus Guard 33151 | -5/Cetus | Spotted Cetus Guard 33162 | -5/Cetus | Allies destroyed Cetus Guard 33163 | -5/Cetus | Allies destroyed Cetus Guard 33165 | -5/Cetus | Allies destroyed Cetus Guard 33166 | -5/Cetus | Allies destroyed Cetus Guard 33168 | -5/Cetus | Discovered exit to Factory (range 20) 33177 | -5/Cetus | System corruption reached 10% 33191 | -5/Cetus | Scared off Revision 17 33277 | -5/Cetus | Identified exit to Archives 33290 | -5/Cetus | Entered Archives 33290 | -5/Archives | Accompanied by 9 allies (incl. A7, 7V-RTL) 33295 | -5/Archives | Received a hacking code to weaken MAIN.C 33432 | -5/Archives | Discovered new exit (range 20) 33474 | -5/Archives | Identified exit to Hub_04(d) 33600 | -5/Archives | Discovered exit to Factory (range 20) 33645 | -5/Archives | Build established: Scavenger-Mutant 35034 | -5/Archives | Discovered exit to Hub_04(d) (range 16) 35082 | -5/Archives | Entered Hub_04(d) 35082 | -5/Hub_04(d) | Accompanied by 5 allies (7V-RTL) 35093 | -5/Hub_04(d) | Discovered exit to Factory (range 5) 35179 | -5/Hub_04(d) | Retrieved Zion intel report: Unaware Analyses 35184 | -5/Hub_04(d) | Retrieved Zion intel report: Emergency Access 35185 | -5/Hub_04(d) | Zion Kinetic Resupply teleported in 35520 | -5/Hub_04(d) | Build established: Scavenger-Skirmisher 35675 | -5/Hub_04(d) | Found Unknown Protection 35675 | -5/Hub_04(d) | Identified Imp. Powered Armor 35921 | -5/Hub_04(d) | Network Hub disabled 36111 | -5/Hub_04(d) | Spotted Lightning 36114 | -5/Hub_04(d) | Entered Factory 36114 | -4/Factory | Accompanied by 1 ally (7V-RTL) 36114 | -4/Factory | Evolved 2 slots: Power x1, Utility x1 36390 | -4/Factory | Repaired Centrium Heavy Treads? 36397 | -4/Factory | Build established: Scavenger-Tank 36450 | -4/Factory | Discovered new exit (range 17) 36490 | -4/Factory | Identified exit to Upper Caves 36548 | -4/Factory | Discovered new exit (range 19) 36555 | -4/Factory | Garrison activated, responded to threat 36599 | -4/Factory | Identified exit to Research 36614 | -4/Factory | First assault squad dispatched 36880 | -4/Factory | Incoming assault squad redirected 36884 | -4/Factory | Fabricated Enh. Nova Cannon? 36886 | -4/Factory | Incoming assault squad redirected 36890 | -4/Factory | Incoming assault squad redirected 36969 | -4/Factory | Incoming assault squad redirected 37017 | -4/Factory | Found Adv. Powered Armor 37025 | -4/Factory | Found Corrupted 7V-RTL's Ultimate Field 37120 | -4/Factory | Found Adv. Powered Armor 37124 | -4/Factory | Destroyed 9 combat bots 37128 | -4/Factory | Lost 12 parts (1p3n6u2w) 37136 | -4/Factory | Incoming assault squad redirected 37167 | -4/Factory | Incoming assault squad redirected 37235 | -4/Factory | System corruption reached 10% 37239 | -4/Factory | Cargo convoy interrupted 37240 | -4/Factory | High security lockdown imminent 37256 | -4/Factory | Spotted Striker 37261 | -4/Factory | Core integrity fell below 50% 37262 | -4/Factory | Released all parts (4) 37265 | -4/Factory | Core integrity fell below 20% 37266 | -4/Factory | Destroyed by H-77 Assassin with Coil Gun Last Messages --------------- 37262_ Released Adv. Powered Armor. 37262_ P-70 Sage destroyed. 37263_ Slug penetrates X-72 Disruptor. 37263_ Slug penetrates Striker. 37263_ Penetrated by Slug. 37263_ Slug penetrates Wall. 37264_ The unstable cave ceiling collapses. 37264_ Acquired GAL Module. 37264_ I-47 Archangel knocked back. 37264_ Knocked back. 37264_ I-47 Archangel knocked back. 37265_ The unstable cave ceiling collapses. 37265_ W-44 Eye sends out distress signal. 37266_ The unstable cave ceiling collapses. 37266_ Detecting system override signal. 37266_ Nuclear Reactor explodes. 37266_ W-44 Eye destroyed. 37266_ Nuclear Reactor explodes. 37266_ Slug penetrates Wall. 37266_ Penetrated by Slug. Map ----- +----------------------------------------------------+ | ?????????????????????????????????????????????????? | | ?????????????????????????????????????????????????? | | ?????????????????????????????????????????????????? | | ?????????????????????????????????????????????????? | | ?????????????????????????????????????????????????? | | ?????????????????????????????????????????????????? | | ?????????????????????????????????????????????????? | | ?????????????????????H???????????????????????????? | | ?????????????????????????????????????????????????? | | ?????????????????????????????????????????????????? | | ?????????????????????????????????????????????????? | | ?????????????????????????????????????????????????? | | ?????????????????????????????????????????????????? | | ?????????????????????????????????????????????????? | | ?????????????????????????????????????????????????? | | ????????????????#????????????????????????????????? | | ????????????????# ???????????????????????????????? | | ????????????????+ "???????###????????????????????? | | ????????????????# ?????? #????????????????????? | | ????????????????? !?????# #????????????????????? | | ?????#####???????? ! ????#w#?##?????????????????? | | ??? #???##### #####/## #######???????????? | | ??# #???# #???????????? | | ??# #???# ##??????????? | | ??# #???# # #??????????? | | ??# #??# @ ##??????????? | | ??# #? # %!A! # #??????????? | | ??# #? # % !!/i # #??????????? | | ??# #? # % !!p # #########??? | | ### ## ## / % ## #??? | | # ## # # # #??? | | # ## ## + #h ## #??? | | # ## ## """ h% ## #??? | | # ## ### """ # x ;# #??# | | # ## ### """ = + "%+ ### | | # # ## # ## ## | | # + ## """ + p # # | | # # ## """ ### " # | | # # ## """ #?## ## "%"## | | ######+#### ## ####### % " % | | ############ ## # % # | | # | | % # | | * %% [= # | | % % % % # | | ##### %=== % # | | # #?# % % %== ####### | | #?# % % / "* %!% + | | ## ## #?# !F!"" != #["" | | ####?# ### """"" # ## | +----------------------------------------------------+ Best States ------------- Heat Dissipation 70 Energy Generation 39 Energy Capacity 750 Matter Stores 390 Matter Capacity 550 Sight Range 20 Robot Scan Range 15 Terrain Scan Density 10 Jamming Range 12 Additional Mass Support 9 Armor Coverage 1350 Resistance: KI 30 Resistance: TH 15 Resistance: EM 20 Weapon Shielding 100 Evasion (%) 50 Targeting Accuracy 8 Recoil Reduction 6 Kinecelleration 40 Salvage Targeting 4 Defensive Hacking 10 Item Schematics ----------------- Hvy. Assault Cannon | -7/Factory | Scanalyzed Phasing Sabre | -7/Zion | Free Battle Cannon | -7/Zion | Free Flamer | -7/Zion | Free Adv. Force Field | -6/Factory | Downloaded Mak. Salvage Targeting Computer | -6/Factory | Scanalyzed Combat Drone Bay | -6/Data Miner | Free Lgt. Regenerative Plating | -6/Data Miner | Free Cmb. Gravmag System | -6/Data Miner | Free Triangulator | -6/Data Miner | Free Exp. Terrain Scan Processor | -6/Data Miner | Free Mni. Smartbomb Launcher | -6/Data Miner | Free Plasma Sword | -6/Data Miner | Free Kinetic Spear | -6/Data Miner | Free Imp. Thermal Defense Suite | -5/Extension | Z-intel Cld. Cesium-ion Thruster | -5/Extension | Z-intel Enh. Coil Gun | -5/Extension | Z-intel Imp. Matter Compressor | -5/Extension | Z-intel Biomechanical Wings | -5/Extension | Z-intel Hvy. Gatling Laser | -5/Extension | Z-intel Cld. Gravmag System | -5/Extension | Z-intel Thermal Defense Suite | -5/Extension | Z-intel Robot Schematics ------------------ X-62 Marksman | -7/Factory | Hacked S-27 Virus | -6/Data Miner | Free G-50 Soldier | -6/Data Miner | Free L-41 Fighter | -6/Data Miner | Free X-72 Disruptor | -6/Data Miner | Free P-70 Sage | -6/Data Miner | Free I-36 Angel | -6/Data Miner | Free Fabricated ------------ I-36 Angel | x1 | -7/Factory | Preloaded X-62 Marksman | x2 | -7/Factory X-62 Marksman | x2 | -7/Factory Adv. Force Field | x2 | -6/Factory | Preloaded Enh. Nova Cannon | x1 | -4/Factory | Preloaded Alien Tech Used ----------------- None Achievements -------------- None Challenges ------------ None Game ------ Seed PhysicsProtonExpander Manual? 0 Play Time 03:20:15 Cumulative 928.6 hours Start 2021.08.30 @ 14:00:51 End 2021.09.02 @ 01:53:45 Sessions 11 Manual Loads 0 Difficulty Rogue Special Mode None Game No. 640 Rogue 636 Adventurer 4 Explorer 0 Win Type - Total 99 Types 77/9/4/4/2/0/0/2/1 Lore% 95 Gallery% 97 Achievement% 96 Wizard Run 0 Options --------- ASCII 0 Keyboard 1 Movement Vi Keybinds 0 Fullscreen 0 Font 16/Terminus Map View 76x50 Tactical HUD 1 Map Filters NONE Filters NONE Steam 1 RUN: e0adde37-70c7-4d31-8c3f-882cc827ac43